Department family,Entity,Date,Expense type,Expense area,Supplier,Transaction number, Amount 
Elht - Main Radiology Dept,Elht - Main Radiology Dept,21/05/2020,Scan Referrals,Diagnostic & Clinical Support,4ways Healthcare,1856686,"24,616.61"
Rbth Rates,Rbth Rates,01/05/2020,Consultancy Services,Estates & Facilities,Avison Young,1854120,"22,587.17"
Rbth - Pharmacy,Rbth - Pharmacy,19/05/2020,Drugs - Budget,Diagnostic & Clinical Support,Baxter Healthcare Ltd,1858447,"26,463.54"
Rbth - Pharmacy,Rbth - Pharmacy,01/05/2020,Drugs - Budget,Diagnostic & Clinical Support,Baxter Healthcare Ltd,1854029,-7.90
Rbth Equipment Library,Rbth Equipment Library,05/05/2020,Med & Surg Equipment,Corporate Services,Becton Dickinson Uk Ltd,1854180,"102,000.00"
Cancer Medical Staffing,Cancer Medical Staffing,07/05/2020,Purch Of Hc-Non Nhs-Priv Sect,Surgical & Anaes Services,Bmi  Healthcare Ltd,1853045,"87,332.08"
Rbth Endoscopy,Rbth Endoscopy,12/05/2020,Med & Surg Equipment,Medicine & Emergency Care,Boston Scientific Ltd (Christine Morin),1855154,"36,020.43"
Rbth Endoscopy,Rbth Endoscopy,12/05/2020,Med & Surg Equipment,Medicine & Emergency Care,Boston Scientific Ltd (Christine Morin),1855155,"38,084.02"
Bgth Pfi Contract,Bgth Pfi Contract,19/05/2020,Pfi Unitary Charges,Corporate Services,Burnley General Hosp Phase V Spc Ltd,1854879,"442,711.58"
Rbth - Pharmacy,Rbth - Pharmacy,05/05/2020,Drugs-Healthcare At Home,Diagnostic & Clinical Support,Calea Uk Limited,1847744,"26,116.50"
Elht Parking,Elht Parking,21/05/2020,Car Parking,Estates & Facilities,Consort Healthcare,1849868,"55,672.51"
Rbth Energy,Rbth Energy,19/05/2020,Electricity,Estates & Facilities,Consort Healthcare,1856886,"233,358.28"
Rbth Pfi Contract,Rbth Pfi Contract,01/05/2020,Pfi Unitary Charges,Corporate Services,Consort Healthcare,1849982,"1,705,260.87"
Systems Support,Systems Support,07/05/2020,Software Licence Fee,Corporate Services,Csc Computer Sciences Ltd,1855421,"327,370.18"
Rbth - Pharmacy,Rbth - Pharmacy,01/05/2020,Drugs - Budget,Diagnostic & Clinical Support,Csl Behring,1853927,"25,200.00"
Rbth Energy,Rbth Energy,19/05/2020,Electricity,Estates & Facilities,Edf Energy,1857367,"82,795.39"
Dietetics,Dietetics,19/05/2020,Med & Surg Supplies,Diagnostic & Clinical Support,Fresenius Kabi Ltd,1858408,"57,986.88"
Dietetics,Dietetics,19/05/2020,Med & Surg Supplies,Diagnostic & Clinical Support,Fresenius Kabi Ltd,1858409,"54,735.33"
Dietetics,Dietetics,19/05/2020,Med & Surg Equipment,Diagnostic & Clinical Support,Fresenius Kabi Ltd,1858403,"22,446.23"
Dietetics,Dietetics,19/05/2020,Med & Surg Equipment,Diagnostic & Clinical Support,Fresenius Kabi Ltd,1858404,"29,885.08"
Dietetics,Dietetics,07/05/2020,Med & Surg Supplies,Diagnostic & Clinical Support,Fresenius Kabi Ltd,1820968,-9.75
Rbth  Catering,Rbth  Catering,14/05/2020,Hardware  & Crockery,Estates & Facilities,Fulfil Uk,1856295,"26,340.00"
Rbth  Catering,Rbth  Catering,21/05/2020,Hardware  & Crockery,Estates & Facilities,Fulfil Uk,1858353,"31,920.00"
Elht-Microbiology,Elht-Microbiology,21/05/2020,Mes Contracts,Diagnostic & Clinical Support,Genmed Managed Services Ltd,1848111,"161,265.70"
Elht-Microbiology,Elht-Microbiology,21/05/2020,Mes Contracts,Diagnostic & Clinical Support,Genmed Managed Services Ltd,1848112,"161,265.70"
Elht-Microbiology,Elht-Microbiology,21/05/2020,Mes Contracts,Diagnostic & Clinical Support,Genmed Managed Services Ltd,1848113,"251,487.52"
Rbth - Pharmacy,Rbth - Pharmacy,21/05/2020,Drugs - Budget,Diagnostic & Clinical Support,Healthcare At Home Ltd,1859372,"21,658.20"
Rbth - Pharmacy,Rbth - Pharmacy,21/05/2020,Drugs - Budget,Diagnostic & Clinical Support,Healthcare At Home Ltd,1859373,"83,100.00"
Rbth - Pharmacy,Rbth - Pharmacy,21/05/2020,Drugs - Budget,Diagnostic & Clinical Support,Healthcare At Home Ltd,1859381,"28,957.47"
Rbth - Pharmacy,Rbth - Pharmacy,21/05/2020,Drugs - Budget,Diagnostic & Clinical Support,Healthcare At Home Ltd,1859384,"60,116.00"
Rbth - Pharmacy,Rbth - Pharmacy,21/05/2020,Drugs - Budget,Diagnostic & Clinical Support,Healthcare At Home Ltd,1859385,"32,890.00"
Rbth Transport,Rbth Transport,07/05/2020,Transport - Maint Ext Contr S,Estates & Facilities,Holmeswood Coaches Limited,1855551,"50,232.24"
It Support,It Support,07/05/2020,Other Costs - Services,Corporate Services,Insight Direct (Uk) Ltd,1844128,"33,514.72"
It Support,It Support,19/05/2020,Other Costs - Services,Corporate Services,Insight Direct (Uk) Ltd,1855410,"149,181.67"
Comp Dept - Trading Account,Comp Dept - Trading Account,21/05/2020,Comp H Ware Purch Non-Capital,Corporate Services,Insight Direct (Uk) Ltd,1843002,"135,000.00"
Outpatient Management,Outpatient Management,01/05/2020,Rent Of Storage Space,Diagnostic & Clinical Support,Iron Mountain (Uk) Limited,1853068,"28,986.82"
Women & Newborn Mgmt Bgth,Women & Newborn Mgmt Bgth,21/05/2020,Med & Surg Equipment,Family Care,Karl Storz Endoscopy Ltd,1857577,"24,477.60"
Surgical Div Mgmt,Surgical Div Mgmt,01/05/2020,Purch Of Hc-Non Nhs-Priv Sect,Surgical & Anaes Services,Mcm Insourcing Limited,1843513,"21,817.00"
Rbth - Cardiac Catheter Lab,Rbth - Cardiac Catheter Lab,19/05/2020,Purch Of Hc-Non Nhs-Priv Sect,Medicine & Emergency Care,Medtronic Ltd,1857841,"75,987.61"
Rbth - Cardiac Catheter Lab,Rbth - Cardiac Catheter Lab,19/05/2020,Purch Of Hc-Non Nhs-Priv Sect,Medicine & Emergency Care,Medtronic Ltd,1853837,"-74,000.00"
Elht - Main Radiology Dept,Elht - Main Radiology Dept,21/05/2020,X-Ray Equip Maint Contracts,Diagnostic & Clinical Support,Nhs Supply Chain Maintenance Contracts 201,1854668,"26,846.33"
Elht-Blood Sciences,Elht-Blood Sciences,19/05/2020,Mes Contracts,Diagnostic & Clinical Support,Ortho Clinical Diagnostics,1855871,"96,617.19"
Mfop & Complex Needs Med Staff,Mfop & Complex Needs Med Staff,19/05/2020,Purch Of Hc-Non Nhs-Priv Sect,Medicine & Emergency Care,Rmo International Healthcare Llp,1855567,"27,159.58"
Mfop & Complex Needs Med Staff,Mfop & Complex Needs Med Staff,19/05/2020,Purch Of Hc-Non Nhs-Priv Sect,Medicine & Emergency Care,Rmo International Healthcare Llp,1855594,"27,159.58"
Rbth - Pharmacy,Rbth - Pharmacy,12/05/2020,Drugs - Budget,Diagnostic & Clinical Support,Roche Products Ltd,1856794,"47,375.48"
Rbth - Pharmacy,Rbth - Pharmacy,19/05/2020,Drugs - Budget,Diagnostic & Clinical Support,Roche Products Ltd,1858420,"30,347.58"
Anaesthetics Med Secs,Anaesthetics Med Secs,07/05/2020,Subscriptions,Surgical & Anaes Services,Rotamap Ltd,1851661,"24,150.00"
Bgth - Pharmacy,Bgth - Pharmacy,07/05/2020,Drugs - Budget,Diagnostic & Clinical Support,Rowlands Pharmacy,1848114,"141,550.95"
Rbth - Pharmacy,Rbth - Pharmacy,07/05/2020,Drugs - Budget,Diagnostic & Clinical Support,Rowlands Pharmacy,1847183,"638,049.12"
Director Of Finance,Director Of Finance,01/05/2020,Sla From Elfs,Corporate Services,Salford Royal Nhs Foundation Trust,76718,"82,699.00"
Director Of Finance,Director Of Finance,14/05/2020,Sla From Elfs,Corporate Services,Salford Royal Nhs Foundation Trust,76719,"82,699.00"
Balance Sheet,Balance Sheet,07/05/2020,Nhs Supply Chain,Non Directorate,Supply Chain Coordination Ltd,1849839,"176,783.47"
Balance Sheet,Balance Sheet,07/05/2020,Nhs Supply Chain,Non Directorate,Supply Chain Coordination Ltd,1851094,"126,856.41"
Balance Sheet,Balance Sheet,14/05/2020,Additions - Auc (P),Non Directorate,Supply Chain Coordination Ltd,29944,"155,760.55"
Balance Sheet,Balance Sheet,14/05/2020,Nhs Supply Chain,Non Directorate,Supply Chain Coordination Ltd,1855911,"127,325.81"
Cancer Dir Mgmt,Cancer Dir Mgmt,07/05/2020,Other Computer Costs Maint,Surgical & Anaes Services,Taunton And Somerset Nhs Foundation Trust,76910,"24,543.00"
Pro Elh Leeds,Pro Elh Leeds,21/05/2020,Test Referrals,Diagnostic & Clinical Support,The Leeds Teaching Hospitals Nhs Trust,75996,"36,478.30"
Elht - Ct,Elht - Ct,21/05/2020,X-Ray Equip Maint Contracts,Diagnostic & Clinical Support,Triple Point Lease Partners,1855319,"30,205.68"
Rbth Energy,Rbth Energy,07/05/2020,Water  & Sewerage,Estates & Facilities,Water Plus Limited,1852664,"59,190.55"
Bgth Energy,Bgth Energy,29/05/2020,Water  & Sewerage,Estates & Facilities,Water Plus Limited,1766784,-601.13
,,,,,,Total,"6,666,019.73"
,,,,,,total,"13,332,039.46"
